Workbook

Sheet Кредитний калькулятор
B2: КАЛЬКУЛЯТОР РОЗРАХУНКУ | G2: 50,000₴ | L2: 2011-05-10
B3: КРЕДИТУ НА НАВЧАННЯ
B5: Рекомендовано, щоб загальні щомісячні виплати позики на навчанняне перевищували 8% від першого річного заробітку.
C7: Загальний поточний щомісячний платіж: | F7: =Кредитинаоплатунавчання[[#Totals],[Поточний щомісячний платіж]] -> 328.59₴ | I7: Загальний запланований щомісячний платіж: | M7: =Кредитинаоплатунавчання[[#Totals],[Запланований платіж]] -> 328.59₴
C8: Відсоток місячного заробітку: | F8: =Кредитинаоплатунавчання[[#Totals],[Поточний щомісячний платіж]]/Прогнозованамісячназарплата -> 7.89% | I8: Відсоток місячного заробітку: | M8: =Кредитинаоплатунавчання[[#Totals],[Запланований платіж]]/Прогнозованамісячназарплата -> 7.89%
C11: ЗАГАЛЬНІ ВІДОМОСТІ ПРО ПОЗИКУ | G11: ДАТИ ПОВЕРНЕННЯ ПОЗИКИ | J11: ВІДОМОСТІ ПРО ПЛАТІЖ
C12: № позики | D12: Позикодавець | E12: Сума позики | F12: Річна відсоткова ставка | G12: Дата початку | H12: Термін (рр.) | I12: Дата завершення | J12: Поточний щомісячний платіж | K12: Загальний відсоток | L12: Запланований платіж | M12: Річний платіж
C13: 10998M88 | D13: Позикодавець 1 | E13: 10,000.00₴ | F13: 5.00% | G13: 2011-04-01 | H13: 10 | I13: =IF(AND(Кредитинаоплатунавчання[[#This Row],[Дата початку]]>0,Кредитинаоплатунавчання[[#This Row],[Термін (рр.)]]>0),EDATE(Кредитинаоплатунавчання[[#This Row],[Дата початку]],Кредитинаоплатунавчання[[#This Row],[Термін (рр.)]]*12),"") -> 2021-04-01 | J13: =IF(AND(Початоквиплатикредитусьогодні,COUNT(Кредитинаоплатунавчання[[#This Row],[Сума позики]]:Кредитинаоплатунавчання[[#This Row],[Термін (рр.)]])=4,Кредитинаоплатунавчання[[#This Row],[Дата початку]]<TODAY()),PMT(Кредитинаоплатунавчання[[#This Row],[Річна відсоткова ставка]]/12,Кредитинаоплатунавчання[[#This Row],[Термін (рр.)]]*12,-Кредитинаоплатунавчання[[#This Row],[Сума позики]],0,0),"") -> 106.07₴ | K13: =IFERROR((Кредитинаоплатунавчання[[#This Row],[Запланований платіж]]*Кредитинаоплатунавчання[[#This Row],[Термін (рр.)]]*12)-Кредитинаоплатунавчання[[#This Row],[Сума позики]],"") -> 2,727.86₴ | L13: =IF(COUNTA(Кредитинаоплатунавчання[[#This Row],[Сума позики]]:Кредитинаоплатунавчання[[#This Row],[Термін (рр.)]])<>4,"",PMT(Кредитинаоплатунавчання[[#This Row],[Річна відсоткова ставка]]/12,Кредитинаоплатунавчання[[#This Row],[Термін (рр.)]]*12,-Кредитинаоплатунавчання[[#This Row],[Сума позики]],0,0)) -> 106.07₴ | M13: =IFERROR(Кредитинаоплатунавчання[[#This Row],[Запланований платіж]]*12,"") -> 1,272.79₴
C14: 20987N87 | D14: Позикодавець 2 | E14: 8,000.00₴ | F14: 5.00% | G14: 2011-05-01 | H14: 10 | I14: =IF(AND(Кредитинаоплатунавчання[[#This Row],[Дата початку]]>0,Кредитинаоплатунавчання[[#This Row],[Термін (рр.)]]>0),EDATE(Кредитинаоплатунавчання[[#This Row],[Дата початку]],Кредитинаоплатунавчання[[#This Row],[Термін (рр.)]]*12),"") -> 2021-05-01 | J14: =IF(AND(Початоквиплатикредитусьогодні,COUNT(Кредитинаоплатунавчання[[#This Row],[Сума позики]]:Кредитинаоплатунавчання[[#This Row],[Термін (рр.)]])=4,Кредитинаоплатунавчання[[#This Row],[Дата початку]]<TODAY()),PMT(Кредитинаоплатунавчання[[#This Row],[Річна відсоткова ставка]]/12,Кредитинаоплатунавчання[[#This Row],[Термін (рр.)]]*12,-Кредитинаоплатунавчання[[#This Row],[Сума позики]],0,0),"") -> 84.85₴ | K14: =IFERROR((Кредитинаоплатунавчання[[#This Row],[Запланований платіж]]*Кредитинаоплатунавчання[[#This Row],[Термін (рр.)]]*12)-Кредитинаоплатунавчання[[#This Row],[Сума позики]],"") -> 2,182.29₴ | L14: =IF(COUNTA(Кредитинаоплатунавчання[[#This Row],[Сума позики]]:Кредитинаоплатунавчання[[#This Row],[Термін (рр.)]])<>4,"",PMT(Кредитинаоплатунавчання[[#This Row],[Річна відсоткова ставка]]/12,Кредитинаоплатунавчання[[#This Row],[Термін (рр.)]]*12,-Кредитинаоплатунавчання[[#This Row],[Сума позики]],0,0)) -> 84.85₴ | M14: =IFERROR(Кредитинаоплатунавчання[[#This Row],[Запланований платіж]]*12,"") -> 1,018.23₴
C15: 36785LM | D15: Позикодавець 3 | E15: 6,000.00₴ | F15: 4.50% | G15: 2012-03-01 | H15: 10 | I15: =IF(AND(Кредитинаоплатунавчання[[#This Row],[Дата початку]]>0,Кредитинаоплатунавчання[[#This Row],[Термін (рр.)]]>0),EDATE(Кредитинаоплатунавчання[[#This Row],[Дата початку]],Кредитинаоплатунавчання[[#This Row],[Термін (рр.)]]*12),"") -> 2022-03-01 | J15: =IF(AND(Початоквиплатикредитусьогодні,COUNT(Кредитинаоплатунавчання[[#This Row],[Сума позики]]:Кредитинаоплатунавчання[[#This Row],[Термін (рр.)]])=4,Кредитинаоплатунавчання[[#This Row],[Дата початку]]<TODAY()),PMT(Кредитинаоплатунавчання[[#This Row],[Річна відсоткова ставка]]/12,Кредитинаоплатунавчання[[#This Row],[Термін (рр.)]]*12,-Кредитинаоплатунавчання[[#This Row],[Сума позики]],0,0),"") -> 62.18₴ | K15: =IFERROR((Кредитинаоплатунавчання[[#This Row],[Запланований платіж]]*Кредитинаоплатунавчання[[#This Row],[Термін (рр.)]]*12)-Кредитинаоплатунавчання[[#This Row],[Сума позики]],"") -> 1,461.97₴ | L15: =IF(COUNTA(Кредитинаоплатунавчання[[#This Row],[Сума позики]]:Кредитинаоплатунавчання[[#This Row],[Термін (рр.)]])<>4,"",PMT(Кредитинаоплатунавчання[[#This Row],[Річна відсоткова ставка]]/12,Кредитинаоплатунавчання[[#This Row],[Термін (рр.)]]*12,-Кредитинаоплатунавчання[[#This Row],[Сума позики]],0,0)) -> 62.18₴ | M15: =IFERROR(Кредитинаоплатунавчання[[#This Row],[Запланований платіж]]*12,"") -> 746.20₴
C16: 765R43 | D16: Позикодавець 4 | E16: 4,000.00₴ | F16: 5.00% | G16: 2012-05-01 | H16: 5 | I16: =IF(AND(Кредитинаоплатунавчання[[#This Row],[Дата початку]]>0,Кредитинаоплатунавчання[[#This Row],[Термін (рр.)]]>0),EDATE(Кредитинаоплатунавчання[[#This Row],[Дата початку]],Кредитинаоплатунавчання[[#This Row],[Термін (рр.)]]*12),"") -> 2017-05-01 | J16: =IF(AND(Початоквиплатикредитусьогодні,COUNT(Кредитинаоплатунавчання[[#This Row],[Сума позики]]:Кредитинаоплатунавчання[[#This Row],[Термін (рр.)]])=4,Кредитинаоплатунавчання[[#This Row],[Дата початку]]<TODAY()),PMT(Кредитинаоплатунавчання[[#This Row],[Річна відсоткова ставка]]/12,Кредитинаоплатунавчання[[#This Row],[Термін (рр.)]]*12,-Кредитинаоплатунавчання[[#This Row],[Сума позики]],0,0),"") -> 75.48₴ | K16: =IFERROR((Кредитинаоплатунавчання[[#This Row],[Запланований платіж]]*Кредитинаоплатунавчання[[#This Row],[Термін (рр.)]]*12)-Кредитинаоплатунавчання[[#This Row],[Сума позики]],"") -> 529.10₴ | L16: =IF(COUNTA(Кредитинаоплатунавчання[[#This Row],[Сума позики]]:Кредитинаоплатунавчання[[#This Row],[Термін (рр.)]])<>4,"",PMT(Кредитинаоплатунавчання[[#This Row],[Річна відсоткова ставка]]/12,Кредитинаоплатунавчання[[#This Row],[Термін (рр.)]]*12,-Кредитинаоплатунавчання[[#This Row],[Сума позики]],0,0)) -> 75.48₴ | M16: =IFERROR(Кредитинаоплатунавчання[[#This Row],[Запланований платіж]]*12,"") -> 905.82₴
C17: Разом | E17: =SUBTOTAL(109,Кредитинаоплатунавчання[Сума позики]) -> 28,000.00₴ | J17: =SUBTOTAL(109,Кредитинаоплатунавчання[Поточний щомісячний платіж]) -> 328.59₴ | K17: =SUBTOTAL(109,Кредитинаоплатунавчання[Загальний відсоток]) -> 6,901.21₴ | L17: =SUBTOTAL(109,Кредитинаоплатунавчання[Запланований платіж]) -> 328.59₴ | M17: =SUBTOTAL(109,Кредитинаоплатунавчання[Річний платіж]) -> 3,943.03₴
C18: Середнє | E18: =AVERAGE(Кредитинаоплатунавчання[Сума позики]) -> 7,000.00₴ | F18: =AVERAGE(Кредитинаоплатунавчання[Річна відсоткова ставка]) -> 4.88% | K18: =AVERAGE(Кредитинаоплатунавчання[Загальний відсоток]) -> 1,725.30₴ | M18: =AVERAGE(Кредитинаоплатунавчання[Річний платіж]) -> 985.76₴
K20: Загальна сума боргу: | M20: =Кредитинаоплатунавчання[[#Totals],[Сума позики]]+Кредитинаоплатунавчання[[#Totals],[Загальний відсоток]] -> 34,901.21₴
K22: Очікуваний місячний заробіток після закінчення ВНЗ: | M22: =(Прогнозованарічназарплата/12) -> 4,166.67₴
